[Event "2026 European Womens Championship"]
[Site "Batumi, GE"]
[Date "2026.05.30"]
[Round "6"]
[White "Socko, Monika"]
[Black "Schneider, Jana"]
[Result "1/2-1/2"]
[Board "65"]
[TimeControl "5400+30"]
[WhiteFideId "1106619"]
[BlackFideId "12924997"]
[WhiteElo "2355"]
[BlackElo "2283"]
[WhiteTitle "GM"]
[BlackTitle "WGM"]
[WhiteClock "0:06:18"]
[BlackClock "0:04:15"]
[Variant "Standard"]

1. d4 {[%clk 1:30:58]}  d5 {[%clk 1:30:36]} 2. Nf3 {[%clk 1:31:23]}  Nf6 {[%clk 1:30:56]} 3. e3 {[%clk 1:31:49]}  e6 {[%clk 1:31:02]}
4. Bd3 {[%clk 1:32:14]}  c5 {[%clk 1:30:57]} 5. b3 {[%clk 1:32:18]}  Nc6 {[%clk 1:28:07]} 6. O-O {[%clk 1:32:41]}  b6 {[%clk 1:28:10]}
7. Bb2 {[%clk 1:31:06]}  Bb7 {[%clk 1:27:58]} 8. Nbd2 {[%clk 1:30:59]}  Bd6 {[%clk 1:27:19]} 9. dxc5 {[%clk 1:27:29]}  Bxc5 {[%clk 1:23:57]}
10. a3 {[%clk 1:24:04]}  a5 {[%clk 1:22:11]} 11. e4 {[%clk 1:13:31]}  dxe4 {[%clk 1:17:51]} 12. Nxe4 {[%clk 1:13:55]}  Nxe4 {[%clk 1:06:02]}
13. Bxe4 {[%clk 1:14:21]}  Qxd1 {[%clk 0:59:42]} 14. Raxd1 {[%clk 1:08:19]}  f6 {[%clk 0:59:46]} 15. Rfe1 {[%clk 1:02:22]}  Ke7 {[%clk 0:58:29]}
16. Nh4 {[%clk 0:50:58]}  Rhd8 {[%clk 0:46:37]} 17. Bxh7 {[%clk 0:46:14]}  g5 {[%clk 0:40:05]} 18. Nf3 {[%clk 0:44:58]}  Rxd1 {[%clk 0:36:47]}
19. Rxd1 {[%clk 0:44:50]}  g4 {[%clk 0:34:55]} 20. Ne1 {[%clk 0:27:19]}  f5 {[%clk 0:34:19]} 21. c4 {[%clk 0:24:13]}  Rd8 {[%clk 0:33:42]}
22. Rxd8 {[%clk 0:23:24]}  Nxd8 {[%clk 0:33:40]} 23. Bg6 {[%clk 0:21:28]}  Be4 {[%clk 0:30:10]} 24. Kf1 {[%clk 0:21:12]}  Bb1 {[%clk 0:23:49]}
25. Ke2 {[%clk 0:21:20]}  Ba2 {[%clk 0:22:18]} 26. Nd3 {[%clk 0:21:23]}  Bxb3 {[%clk 0:21:43]} 27. Nxc5 {[%clk 0:21:48]}  bxc5 {[%clk 0:22:05]}
28. Kd3 {[%clk 0:22:11]}  Nb7 {[%clk 0:20:12]} 29. h4 {[%clk 0:21:06]}  gxh3 {[%clk 0:19:19]} 30. gxh3 {[%clk 0:21:34]}  Nd6 {[%clk 0:18:01]}
31. h4 {[%clk 0:21:36]}  Bxc4+ {[%clk 0:17:53]} 32. Ke3 {[%clk 0:21:42]}  Kf8 {[%clk 0:14:44]} 33. h5 {[%clk 0:18:13]}  Nf7 {[%clk 0:14:25]}
34. Kf4 {[%clk 0:17:53]}  Bd3 {[%clk 0:13:07]} 35. Ke3 {[%clk 0:12:32]}  Bb5 {[%clk 0:12:18]} 36. f4 {[%clk 0:10:54]}  Kg8 {[%clk 0:11:43]}
37. Kf3 {[%clk 0:06:25]}  Bc6+ {[%clk 0:09:43]} 38. Kg3 {[%clk 0:06:33]}  Nh8 {[%clk 0:05:50]} 39. Kh4 {[%clk 0:06:31]}  Nxg6+ {[%clk 0:04:34]}
40. hxg6 {[%clk 0:06:57]}  a4 {[%clk 0:03:54]} 41. Kg5 {[%clk 0:06:51]}  Bd5 {[%clk 0:03:43]} 42. Kf6 {[%clk 0:06:28]}  Bb3 {[%clk 0:03:58]}
43. Ke7 {[%clk 0:06:40]}  Bd5 {[%clk 0:04:10]} 44. Kd6 {[%clk 0:07:04]}  Bb3 {[%clk 0:04:15]} 45. Kxc5 {[%clk 0:06:18]} 1/2-1/2

[Event "2026 European Womens Championship"]
[Site "Batumi, GE"]
[Date "2026.05.30"]
[Round "6"]
[White "Jarocka, Liwia"]
[Black "Osmak, Yuliia"]
[Result "1-0"]
[Board "66"]
[TimeControl "5400+30"]
[WhiteFideId "21807558"]
[BlackFideId "14101602"]
[WhiteElo "2288"]
[BlackElo "2451"]
[WhiteTitle "FM"]
[BlackTitle "IM"]
[WhiteClock "0:14:09"]
[BlackClock "0:30:30"]
[Variant "Standard"]

1. e4 {[%clk 1:30:54]}  c5 {[%clk 1:30:51]} 2. Nc3 {[%clk 1:31:12]}  d6 {[%clk 1:30:59]} 3. d4 {[%clk 1:31:12]}  cxd4 {[%clk 1:31:22]}
4. Qxd4 {[%clk 1:31:39]}  Nc6 {[%clk 1:31:37]} 5. Qd2 {[%clk 1:32:01]}  g6 {[%clk 1:26:24]} 6. b3 {[%clk 1:31:58]}  Bh6 {[%clk 1:26:35]}
7. f4 {[%clk 1:32:21]}  f5 {[%clk 1:24:39]} 8. Bb2 {[%clk 1:31:34]}  Nf6 {[%clk 1:24:52]} 9. O-O-O {[%clk 1:30:31]}  fxe4 {[%clk 1:15:06]}
10. h3 {[%clk 1:29:21]}  O-O {[%clk 1:12:05]} 11. Nge2 {[%clk 1:23:09]}  Be6 {[%clk 1:02:04]} 12. g4 {[%clk 1:21:19]}  Bg7 {[%clk 1:02:29]}
13. Bg2 {[%clk 1:11:11]}  Qa5 {[%clk 0:54:03]} 14. g5 {[%clk 0:54:56]}  Nh5 {[%clk 0:50:23]} 15. Kb1 {[%clk 0:52:05]}  Bf5 {[%clk 0:35:17]}
16. Rhf1 {[%clk 0:48:25]}  Rac8 {[%clk 0:33:21]} 17. a3 {[%clk 0:45:28]}  b5 {[%clk 0:15:59]} 18. Nxe4 {[%clk 0:36:32]}  Qxd2 {[%clk 0:14:35]}
19. Rxd2 {[%clk 0:36:46]}  b4 {[%clk 0:13:47]} 20. N4g3 {[%clk 0:33:55]}  Nxg3 {[%clk 0:13:01]} 21. Nxg3 {[%clk 0:32:48]}  Bxb2 {[%clk 0:09:07]}
22. Kxb2 {[%clk 0:32:25]}  Rc7 {[%clk 0:07:19]} 23. Nxf5 {[%clk 0:30:07]}  Rxf5 {[%clk 0:07:13]} 24. Be4 {[%clk 0:29:30]}  Rc5 {[%clk 0:05:33]}
25. Bd5+ {[%clk 0:24:25]}  Kg7 {[%clk 0:05:39]} 26. a4 {[%clk 0:23:25]}  Rc3 {[%clk 0:04:56]} 27. Re1 {[%clk 0:19:22]}  Kf8 {[%clk 0:05:06]}
28. h4 {[%clk 0:19:26]}  a5 {[%clk 0:02:54]} 29. h5 {[%clk 0:19:04]}  Nd8 {[%clk 0:00:57]} 30. hxg6 {[%clk 0:18:37]}  hxg6 {[%clk 0:01:25]}
31. Rh1 {[%clk 0:19:01]}  Ke8 {[%clk 0:00:35]} 32. Be4 {[%clk 0:19:09]}  Ne6 {[%clk 0:00:37]} 33. Bxg6+ {[%clk 0:19:05]}  Kf8 {[%clk 0:00:32]}
34. Rf2 {[%clk 0:16:26]}  Kg7 {[%clk 0:00:39]} 35. Bd3 {[%clk 0:16:34]}  Nc5 {[%clk 0:00:39]} 36. Bf5 {[%clk 0:13:59]}  Kg8 {[%clk 0:00:31]}
37. Rfh2 {[%clk 0:14:09]}  e6 {[%clk 0:30:30]} 1-0

[Event "2026 European Womens Championship"]
[Site "Batumi, GE"]
[Date "2026.05.30"]
[Round "6"]
[White "Javakhishvili, Lela"]
[Black "Rapport, Jovana"]
[Result "1-0"]
[Board "67"]
[TimeControl "5400+30"]
[WhiteFideId "13601458"]
[BlackFideId "937266"]
[WhiteElo "2442"]
[BlackElo "2235"]
[WhiteTitle "IM"]
[BlackTitle "WGM"]
[WhiteClock "0:36:30"]
[BlackClock "0:32:27"]
[Variant "Standard"]

1. d4 {[%clk 1:30:55]}  Nf6 {[%clk 1:28:30]} 2. c4 {[%clk 1:31:14]}  g6 {[%clk 1:28:53]} 3. Nc3 {[%clk 1:31:27]}  Bg7 {[%clk 1:29:14]}
4. e4 {[%clk 1:31:44]}  d6 {[%clk 1:29:39]} 5. Nf3 {[%clk 1:31:51]}  O-O {[%clk 1:29:48]} 6. Be2 {[%clk 1:32:12]}  e5 {[%clk 1:30:04]}
7. O-O {[%clk 1:32:24]}  Na6 {[%clk 1:30:17]} 8. Re1 {[%clk 1:32:32]}  c6 {[%clk 1:30:35]} 9. Be3 {[%clk 1:32:42]}  Ng4 {[%clk 1:29:48]}
10. Bg5 {[%clk 1:33:01]}  f6 {[%clk 1:30:12]} 11. Bh4 {[%clk 1:33:27]}  Nh6 {[%clk 1:25:54]} 12. c5 {[%clk 1:33:16]}  exd4 {[%clk 1:24:27]}
13. Bxa6 {[%clk 1:33:34]}  bxa6 {[%clk 1:21:17]} 14. Nxd4 {[%clk 1:31:02]}  Qd7 {[%clk 1:16:59]} 15. cxd6 {[%clk 1:16:56]}  Nf7 {[%clk 1:16:32]}
16. Bg3 {[%clk 1:15:17]}  Nxd6 {[%clk 1:15:19]} 17. Qb3+ {[%clk 1:12:02]}  Rf7 {[%clk 1:08:34]} 18. Rad1 {[%clk 1:11:31]}  Ne8 {[%clk 0:58:29]}
19. Na4 {[%clk 1:03:10]}  Bf8 {[%clk 0:55:40]} 20. Qc4 {[%clk 1:03:04]}  Bb7 {[%clk 0:43:22]} 21. Ne6 {[%clk 0:56:19]}  Qe7 {[%clk 0:41:13]}
22. Nac5 {[%clk 0:56:31]}  Bc8 {[%clk 0:41:07]} 23. Nxf8 {[%clk 0:40:23]}  Kxf8 {[%clk 0:40:37]} 24. b4 {[%clk 0:35:43]}  Kg7 {[%clk 0:38:41]}
25. e5 {[%clk 0:36:00]}  f5 {[%clk 0:32:02]} 26. e6 {[%clk 0:36:18]}  Rf8 {[%clk 0:32:27]} 27. Nd7 {[%clk 0:36:30]} 1-0

[Event "2026 European Womens Championship"]
[Site "Batumi, GE"]
[Date "2026.05.30"]
[Round "6"]
[White "Khotenashvili, Bella"]
[Black "Skarbarchuk, Tetyana"]
[Result "1-0"]
[Board "68"]
[TimeControl "5400+30"]
[WhiteFideId "13602640"]
[BlackFideId "14184494"]
[WhiteElo "2415"]
[BlackElo "2236"]
[WhiteTitle "GM"]
[WhiteClock "0:20:42"]
[BlackClock "0:06:19"]
[Variant "Standard"]

1. c4 {[%clk 1:28:38]}  e6 {[%clk 1:30:02]} 2. Nf3 {[%clk 1:28:37]}  d5 {[%clk 1:30:22]} 3. d4 {[%clk 1:28:42]}  Nf6 {[%clk 1:30:39]}
4. g3 {[%clk 1:28:52]}  dxc4 {[%clk 1:30:02]} 5. Bg2 {[%clk 1:27:44]}  a6 {[%clk 1:30:17]} 6. O-O {[%clk 1:27:02]}  Nc6 {[%clk 1:30:25]}
7. Nc3 {[%clk 1:25:40]}  Rb8 {[%clk 1:29:07]} 8. e4 {[%clk 1:21:05]}  Be7 {[%clk 1:28:21]} 9. Bf4 {[%clk 1:16:35]}  O-O {[%clk 1:20:18]}
10. a3 {[%clk 1:16:36]}  Na5 {[%clk 1:08:20]} 11. Qc2 {[%clk 1:16:21]}  b5 {[%clk 1:06:16]} 12. Rad1 {[%clk 1:16:24]}  Bb7 {[%clk 1:05:54]}
13. Rfe1 {[%clk 1:12:06]}  Nb3 {[%clk 0:58:42]} 14. h4 {[%clk 1:09:39]}  Nh5 {[%clk 0:52:17]} 15. Be3 {[%clk 1:06:42]}  f5 {[%clk 0:50:59]}
16. Bg5 {[%clk 0:39:38]}  f4 {[%clk 0:33:47]} 17. g4 {[%clk 0:37:48]}  Nf6 {[%clk 0:34:05]} 18. d5 {[%clk 0:32:07]}  e5 {[%clk 0:22:23]}
19. Nxe5 {[%clk 0:30:50]}  Qc8 {[%clk 0:18:54]} 20. Bh3 {[%clk 0:26:51]}  Bc5 {[%clk 0:16:30]} 21. Bxf6 {[%clk 0:20:38]}  Nd4 {[%clk 0:16:52]}
22. Rxd4 {[%clk 0:20:58]}  Bxd4 {[%clk 0:17:17]} 23. Nd7 {[%clk 0:20:12]}  Bxf6 {[%clk 0:15:48]} 24. g5 {[%clk 0:19:38]}  Bxc3 {[%clk 0:14:30]}
25. Qxc3 {[%clk 0:11:21]}  Kh8 {[%clk 0:14:53]} 26. Kh2 {[%clk 0:06:35]}  Qe8 {[%clk 0:13:58]} 27. Nxb8 {[%clk 0:04:42]}  Qxb8 {[%clk 0:14:22]}
28. Qd4 {[%clk 0:02:27]}  f3 {[%clk 0:10:59]} 29. e5 {[%clk 0:02:42]}  Rd8 {[%clk 0:10:49]} 30. e6 {[%clk 0:00:47]}  c5+ {[%clk 0:09:31]}
31. Qe5 {[%clk 0:01:08]}  Qxe5+ {[%clk 0:09:32]} 32. Rxe5 {[%clk 0:01:35]}  Rxd5 {[%clk 0:09:56]} 33. Re3 {[%clk 0:00:41]}  Rd3 {[%clk 0:09:56]}
34. Re5 {[%clk 0:00:47]}  Rd5 {[%clk 0:08:06]} 35. Re1 {[%clk 0:00:37]}  Bc6 {[%clk 0:06:52]} 36. e7 {[%clk 0:01:06]}  Be8 {[%clk 0:07:16]}
37. Re4 {[%clk 0:00:34]}  Rd4 {[%clk 0:06:32]} 38. Re3 {[%clk 0:00:40]}  Rd3 {[%clk 0:06:23]} 39. Be6 {[%clk 0:00:40]}  g6 {[%clk 0:01:45]}
40. Kg3 {[%clk 0:01:08]}  Kg7 {[%clk 0:01:24]} 41. Rxd3 {[%clk 0:23:47]}  cxd3 {[%clk 0:31:48]} 42. Kxf3 {[%clk 0:24:09]}  c4 {[%clk 0:15:42]}
43. Ke3 {[%clk 0:21:15]}  a5 {[%clk 0:13:21]} 44. a4 {[%clk 0:20:11]}  c3 {[%clk 0:06:06]} 45. bxc3 {[%clk 0:20:20]}  bxa4 {[%clk 0:06:30]}
46. Kxd3 {[%clk 0:20:26]}  a3 {[%clk 0:06:40]} 47. Kc2 {[%clk 0:20:32]}  a4 {[%clk 0:06:19]} 48. Kb1 {[%clk 0:20:42]} 1-0

[Event "2026 European Womens Championship"]
[Site "Batumi, GE"]
[Date "2026.05.30"]
[Round "6"]
[White "Danielian, Elina"]
[Black "Piddubna, Bozhena"]
[Result "1/2-1/2"]
[Board "69"]
[TimeControl "5400+30"]
[WhiteFideId "13300210"]
[BlackFideId "34109293"]
[WhiteElo "2390"]
[BlackElo "2235"]
[WhiteTitle "GM"]
[BlackTitle "WIM"]
[WhiteClock "0:10:13"]
[BlackClock "0:02:59"]
[Variant "Standard"]

1. d4 {[%clk 1:30:58]}  Nf6 {[%clk 1:30:45]} 2. c4 {[%clk 1:31:00]}  e6 {[%clk 1:31:10]} 3. Nc3 {[%clk 1:31:02]}  Bb4 {[%clk 1:31:27]}
4. e3 {[%clk 1:31:04]}  O-O {[%clk 1:31:36]} 5. Bd3 {[%clk 1:31:20]}  d5 {[%clk 1:31:31]} 6. Nf3 {[%clk 1:31:37]}  dxc4 {[%clk 1:30:59]}
7. Bxc4 {[%clk 1:32:02]}  c5 {[%clk 1:31:23]} 8. O-O {[%clk 1:32:28]}  Nc6 {[%clk 1:31:42]} 9. Bd3 {[%clk 1:32:37]}  cxd4 {[%clk 1:28:15]}
10. exd4 {[%clk 1:33:03]}  Be7 {[%clk 1:28:20]} 11. a3 {[%clk 1:33:11]}  b6 {[%clk 1:26:26]} 12. Re1 {[%clk 1:32:36]}  Bb7 {[%clk 1:26:24]}
13. Bc2 {[%clk 1:31:56]}  Na5 {[%clk 1:18:42]} 14. Ne5 {[%clk 1:28:57]}  Nc6 {[%clk 1:17:12]} 15. Nf3 {[%clk 1:28:54]}  Na5 {[%clk 1:17:25]}
16. Bg5 {[%clk 1:26:40]}  h6 {[%clk 1:12:32]} 17. Bxf6 {[%clk 1:25:56]}  Bxf6 {[%clk 1:09:45]} 18. Qd3 {[%clk 1:26:22]}  g6 {[%clk 1:10:03]}
19. Rad1 {[%clk 1:24:40]}  Rc8 {[%clk 1:05:15]} 20. Qe2 {[%clk 1:02:36]}  Nc4 {[%clk 0:56:57]} 21. Be4 {[%clk 1:03:02]}  Bxe4 {[%clk 0:53:29]}
22. Nxe4 {[%clk 1:03:29]}  Bg7 {[%clk 0:53:45]} 23. Ne5 {[%clk 1:00:56]}  Nd6 {[%clk 0:51:51]} 24. Nc3 {[%clk 1:01:20]}  Re8 {[%clk 0:44:49]}
25. g3 {[%clk 1:01:29]}  Qf6 {[%clk 0:38:22]} 26. Qa6 {[%clk 1:00:37]}  Qe7 {[%clk 0:34:10]} 27. d5 {[%clk 0:55:14]}  exd5 {[%clk 0:24:39]}
28. Nxd5 {[%clk 0:55:39]}  Qb7 {[%clk 0:24:50]} 29. Qxb7 {[%clk 0:56:04]}  Nxb7 {[%clk 0:25:17]} 30. Nxg6 {[%clk 0:42:36]}  fxg6 {[%clk 0:09:40]}
31. Ne7+ {[%clk 0:42:57]}  Kf8 {[%clk 0:10:05]} 32. Nxc8 {[%clk 0:43:04]}  Rxc8 {[%clk 0:10:33]} 33. b4 {[%clk 0:38:47]}  Rc7 {[%clk 0:10:43]}
34. h4 {[%clk 0:32:37]}  Re7 {[%clk 0:06:44]} 35. Kf1 {[%clk 0:32:59]}  Ke8 {[%clk 0:06:20]} 36. Re2 {[%clk 0:28:26]}  Rxe2 {[%clk 0:06:12]}
37. Kxe2 {[%clk 0:28:52]}  Ke7 {[%clk 0:06:33]} 38. Rc1 {[%clk 0:23:40]}  Kd7 {[%clk 0:06:46]} 39. f4 {[%clk 0:12:32]}  h5 {[%clk 0:04:49]}
40. g4 {[%clk 0:12:21]}  Nd6 {[%clk 0:02:35]} 41. Rg1 {[%clk 0:10:28]}  hxg4 {[%clk 0:18:03]} 42. Rxg4 {[%clk 0:40:50]}  Bf6 {[%clk 0:18:31]}
43. Rxg6 {[%clk 0:40:43]}  Bxh4 {[%clk 0:17:04]} 44. a4 {[%clk 0:37:15]}  a6 {[%clk 0:13:07]} 45. f5 {[%clk 0:29:32]}  Bd8 {[%clk 0:11:57]}
46. f6 {[%clk 0:27:26]}  Nf7 {[%clk 0:12:17]} 47. Ke3 {[%clk 0:25:14]}  Ke6 {[%clk 0:12:10]} 48. Rg8 {[%clk 0:25:20]}  Kxf6 {[%clk 0:06:37]}
49. Re8 {[%clk 0:24:04]}  a5 {[%clk 0:04:31]} 50. bxa5 {[%clk 0:24:22]}  bxa5 {[%clk 0:04:56]} 51. Kd4 {[%clk 0:24:37]}  Be7 {[%clk 0:04:58]}
52. Ra8 {[%clk 0:18:29]}  Bb4 {[%clk 0:05:06]} 53. Ra6+ {[%clk 0:15:40]}  Kf5 {[%clk 0:05:04]} 54. Rb6 {[%clk 0:13:02]}  Nd6 {[%clk 0:01:13]}
55. Kd5 {[%clk 0:12:49]}  Ne4 {[%clk 0:01:18]} 56. Rxb4 {[%clk 0:08:56]}  axb4 {[%clk 0:01:41]} 57. Kc4 {[%clk 0:09:24]}  b3 {[%clk 0:02:06]}
58. Kxb3 {[%clk 0:09:50]}  Nc5+ {[%clk 0:02:32]} 59. Kb4 {[%clk 0:10:13]}  Nxa4 {[%clk 0:02:59]} 1/2-1/2

[Event "2026 European Womens Championship"]
[Site "Batumi, GE"]
[Date "2026.05.30"]
[Round "6"]
[White "Safarli, Josefine"]
[Black "Maltsevskaya, Aleksandra"]
[Result "1-0"]
[Board "70"]
[TimeControl "5400+30"]
[WhiteFideId "12900460"]
[BlackFideId "24174041"]
[WhiteElo "2253"]
[BlackElo "2390"]
[WhiteTitle "WGM"]
[BlackTitle "IM"]
[WhiteClock "0:22:22"]
[BlackClock "0:11:40"]
[Variant "Standard"]

1. e4 {[%clk 1:30:57]}  c5 {[%clk 1:30:54]} 2. Nf3 {[%clk 1:31:23]}  d6 {[%clk 1:31:16]} 3. d4 {[%clk 1:31:47]}  cxd4 {[%clk 1:31:41]}
4. Nxd4 {[%clk 1:32:13]}  Nf6 {[%clk 1:32:05]} 5. Nc3 {[%clk 1:32:38]}  Nc6 {[%clk 1:32:28]} 6. Bg5 {[%clk 1:32:38]}  e6 {[%clk 1:32:52]}
7. Qd2 {[%clk 1:32:19]}  Bd7 {[%clk 1:33:12]} 8. Ndb5 {[%clk 1:30:46]}  Qb8 {[%clk 1:32:58]} 9. O-O-O {[%clk 1:28:29]}  h6 {[%clk 1:24:28]}
10. Bxf6 {[%clk 1:26:29]}  gxf6 {[%clk 1:24:51]} 11. Nxd6+ {[%clk 1:26:51]}  Bxd6 {[%clk 1:25:15]} 12. Qxd6 {[%clk 1:27:15]}  Qxd6 {[%clk 1:25:39]}
13. Rxd6 {[%clk 1:27:41]}  Ke7 {[%clk 1:24:15]} 14. Rd2 {[%clk 1:26:20]}  Rac8 {[%clk 1:23:50]} 15. Bb5 {[%clk 1:19:16]}  Ne5 {[%clk 1:23:30]}
16. Bxd7 {[%clk 1:19:17]}  Nxd7 {[%clk 1:23:53]} 17. Rhd1 {[%clk 1:18:01]}  Nb8 {[%clk 1:20:22]} 18. a4 {[%clk 1:14:23]}  a6 {[%clk 1:20:38]}
19. Rd3 {[%clk 1:12:46]}  Rc7 {[%clk 1:20:10]} 20. b3 {[%clk 1:08:24]}  Rg8 {[%clk 1:18:56]} 21. g3 {[%clk 1:06:48]}  Nd7 {[%clk 1:18:34]}
22. f4 {[%clk 1:04:48]}  Rb8 {[%clk 1:09:10]} 23. a5 {[%clk 0:59:37]}  Rbc8 {[%clk 1:07:14]} 24. Kb2 {[%clk 0:58:59]}  Nb8 {[%clk 1:06:06]}
25. Ra1 {[%clk 0:47:50]}  Nc6 {[%clk 0:59:09]} 26. Nd5+ {[%clk 0:40:06]}  exd5 {[%clk 0:59:32]} 27. exd5 {[%clk 0:40:33]}  Ne5 {[%clk 0:58:12]}
28. d6+ {[%clk 0:40:24]}  Ke6 {[%clk 0:58:36]} 29. dxc7 {[%clk 0:39:31]}  Nxd3+ {[%clk 0:58:58]} 30. cxd3 {[%clk 0:39:58]}  Rxc7 {[%clk 0:59:22]}
31. Rc1 {[%clk 0:38:54]}  Rd7 {[%clk 0:57:49]} 32. Kc3 {[%clk 0:39:09]}  h5 {[%clk 0:52:14]} 33. Kd2 {[%clk 0:38:45]}  Kf5 {[%clk 0:49:35]}
34. h3 {[%clk 0:36:33]}  Rd5 {[%clk 0:42:02]} 35. b4 {[%clk 0:36:25]}  Ke6 {[%clk 0:22:21]} 36. Rc7 {[%clk 0:34:32]}  h4 {[%clk 0:17:30]}
37. gxh4 {[%clk 0:33:25]}  Rd4 {[%clk 0:17:13]} 38. Rc4 {[%clk 0:29:20]}  Rd5 {[%clk 0:17:05]} 39. Kc3 {[%clk 0:29:29]}  Rf5 {[%clk 0:16:25]}
40. Rc7 {[%clk 0:26:07]}  Rxf4 {[%clk 0:15:16]} 41. Rxb7 {[%clk 0:26:10]}  f5 {[%clk 0:15:09]} 42. Rb6+ {[%clk 0:26:18]}  Ke5 {[%clk 0:15:33]}
43. Rxa6 {[%clk 0:26:20]}  Rf1 {[%clk 0:14:27]} 44. Ra7 {[%clk 0:25:29]}  f6 {[%clk 0:13:28]} 45. Re7+ {[%clk 0:25:26]}  Kd6 {[%clk 0:13:39]}
46. Re2 {[%clk 0:25:21]}  f4 {[%clk 0:13:41]} 47. Ra2 {[%clk 0:24:30]}  f3 {[%clk 0:11:58]} 48. Kd4 {[%clk 0:22:17]}  Re1 {[%clk 0:11:40]}
49. Rf2 {[%clk 0:22:22]} 1-0

[Event "2026 European Womens Championship"]
[Site "Batumi, GE"]
[Date "2026.05.30"]
[Round "6"]
[White "Charkhalashvili, Inga"]
[Black "Sivanandan, Bodhana"]
[Result "1/2-1/2"]
[Board "71"]
[TimeControl "5400+30"]
[WhiteFideId "13601431"]
[BlackFideId "497592"]
[WhiteElo "2235"]
[BlackElo "2374"]
[WhiteTitle "WGM"]
[BlackTitle "FM"]
[WhiteClock "0:01:16"]
[BlackClock "0:02:27"]
[Variant "Standard"]

1. d4 {[%clk 1:30:58]}  d5 {[%clk 1:25:04]} 2. c4 {[%clk 1:31:22]}  c6 {[%clk 1:24:59]} 3. Nc3 {[%clk 1:31:42]}  Nf6 {[%clk 1:25:13]}
4. Nf3 {[%clk 1:32:03]}  e6 {[%clk 1:25:16]} 5. cxd5 {[%clk 1:31:14]}  exd5 {[%clk 1:25:24]} 6. Bg5 {[%clk 1:31:21]}  Be7 {[%clk 1:25:00]}
7. e3 {[%clk 1:31:45]}  h6 {[%clk 1:23:32]} 8. Bf4 {[%clk 1:30:54]}  Bf5 {[%clk 1:22:16]} 9. Bd3 {[%clk 1:30:54]}  Bxd3 {[%clk 1:16:52]}
10. Qxd3 {[%clk 1:31:18]}  O-O {[%clk 1:16:47]} 11. O-O {[%clk 1:31:32]}  Re8 {[%clk 1:16:11]} 12. h3 {[%clk 1:27:50]}  Bd6 {[%clk 1:12:15]}
13. Rfe1 {[%clk 1:23:26]}  Ne4 {[%clk 1:09:14]} 14. Ne5 {[%clk 1:20:51]}  Nd7 {[%clk 1:02:10]} 15. Nxd7 {[%clk 1:10:46]}  Qxd7 {[%clk 1:02:20]}
16. Bxd6 {[%clk 1:10:55]}  Nxd6 {[%clk 1:02:14]} 17. b4 {[%clk 1:08:09]}  a5 {[%clk 0:49:56]} 18. Rab1 {[%clk 0:59:16]}  axb4 {[%clk 0:46:58]}
19. Rxb4 {[%clk 0:58:32]}  Ra3 {[%clk 0:42:48]} 20. Ra4 {[%clk 0:58:35]}  Ra8 {[%clk 0:41:58]} 21. Rxa8+ {[%clk 0:58:33]}  Rxa8 {[%clk 0:42:21]}
22. a4 {[%clk 0:58:36]}  Qf5 {[%clk 0:31:31]} 23. Qe2 {[%clk 0:51:25]}  Re8 {[%clk 0:27:36]} 24. Ra1 {[%clk 0:41:50]}  Re6 {[%clk 0:25:18]}
25. Kh2 {[%clk 0:36:44]}  Qg5 {[%clk 0:18:11]} 26. a5 {[%clk 0:31:17]}  Nf5 {[%clk 0:17:24]} 27. Qg4 {[%clk 0:29:38]}  Qf6 {[%clk 0:11:37]}
28. a6 {[%clk 0:28:35]}  bxa6 {[%clk 0:11:57]} 29. Rxa6 {[%clk 0:29:37]}  Ne7 {[%clk 0:10:46]} 30. Ra8+ {[%clk 0:26:41]}  Kh7 {[%clk 0:11:03]}
31. Qe2 {[%clk 0:24:52]}  Ng6 {[%clk 0:08:25]} 32. Qc2 {[%clk 0:23:19]}  Qh4 {[%clk 0:06:39]} 33. Kg1 {[%clk 0:17:17]}  Rf6 {[%clk 0:04:08]}
34. Rc8 {[%clk 0:15:45]}  Re6 {[%clk 0:02:57]} 35. Na4 {[%clk 0:07:42]}  Qf6 {[%clk 0:02:32]} 36. Nc5 {[%clk 0:07:36]}  Rd6 {[%clk 0:02:16]}
37. Nb7 {[%clk 0:07:36]}  Re6 {[%clk 0:02:24]} 38. Na5 {[%clk 0:07:10]}  Qg5 {[%clk 0:01:46]} 39. Nxc6 {[%clk 0:06:45]}  Re4 {[%clk 0:01:16]}
40. Nb4 {[%clk 0:04:24]}  Nh4 {[%clk 0:00:48]} 41. g3 {[%clk 0:26:35]}  Nf3+ {[%clk 0:29:56]} 42. Kf1 {[%clk 0:26:46]}  Qh5 {[%clk 0:28:57]}
43. h4 {[%clk 0:21:12]}  Qf5 {[%clk 0:24:32]} 44. Qc3 {[%clk 0:16:08]}  Qh3+ {[%clk 0:24:30]} 45. Ke2 {[%clk 0:16:33]}  Nxd4+ {[%clk 0:24:24]}
46. Kd2 {[%clk 0:16:45]}  Qf1 {[%clk 0:11:40]} 47. Nd3 {[%clk 0:16:40]}  Nf3+ {[%clk 0:10:39]} 48. Kc2 {[%clk 0:17:03]}  Qe2+ {[%clk 0:10:03]}
49. Kc1 {[%clk 0:16:16]}  Re7 {[%clk 0:05:14]} 50. Qc2 {[%clk 0:14:47]}  Qf1+ {[%clk 0:05:32]} 51. Qd1 {[%clk 0:14:30]}  Qh3 {[%clk 0:05:15]}
52. Rc2 {[%clk 0:14:14]}  Qf5 {[%clk 0:05:20]} 53. Nf4 {[%clk 0:12:03]}  Ne5 {[%clk 0:05:29]} 54. h5 {[%clk 0:06:49]}  Ra7 {[%clk 0:04:39]}
55. Qd4 {[%clk 0:06:18]}  Ra5 {[%clk 0:04:21]} 56. Kd1 {[%clk 0:04:04]}  Ra3 {[%clk 0:02:14]} 57. Qb2 {[%clk 0:01:35]}  Ra4 {[%clk 0:02:08]}
58. Rc1 {[%clk 0:01:20]}  Qg4+ {[%clk 0:01:43]} 59. Qe2 {[%clk 0:01:43]}  Nf3 {[%clk 0:01:31]} 60. Nxd5 {[%clk 0:00:59]}  Ra7 {[%clk 0:01:25]}
61. Qd3+ {[%clk 0:00:54]}  f5 {[%clk 0:01:44]} 62. Qc4 {[%clk 0:00:42]}  Qxh5 {[%clk 0:01:40]} 63. Nf4 {[%clk 0:00:39]}  Qg4 {[%clk 0:01:42]}
64. Qe2 {[%clk 0:00:44]}  Rd7+ {[%clk 0:01:53]} 65. Kc2 {[%clk 0:01:08]}  Rd2+ {[%clk 0:02:17]} 66. Qxd2 {[%clk 0:01:23]}  Nxd2 {[%clk 0:02:43]}
67. Kxd2 {[%clk 0:01:41]}  Qf3 {[%clk 0:02:56]} 68. Nd3 {[%clk 0:01:35]}  h5 {[%clk 0:03:09]} 69. Rc7 {[%clk 0:01:05]}  Kh6 {[%clk 0:03:25]}
70. Rd7 {[%clk 0:01:10]}  g5 {[%clk 0:03:40]} 71. Rd6+ {[%clk 0:01:14]}  Kh7 {[%clk 0:04:07]} 72. Rd7+ {[%clk 0:01:07]}  Kg8 {[%clk 0:04:30]}
73. Rd8+ {[%clk 0:01:12]}  Kg7 {[%clk 0:04:48]} 74. Rd7+ {[%clk 0:01:31]}  Kf6 {[%clk 0:04:54]} 75. Rd6+ {[%clk 0:01:23]}  Ke7 {[%clk 0:04:56]}
76. Rh6 {[%clk 0:01:20]}  Qg4 {[%clk 0:04:46]} 77. Ke1 {[%clk 0:01:14]}  Qc4 {[%clk 0:04:03]} 78. Kd2 {[%clk 0:01:08]}  Qa2+ {[%clk 0:03:41]}
79. Kd1 {[%clk 0:01:27]}  Qa1+ {[%clk 0:03:31]} 80. Kd2 {[%clk 0:01:27]}  Qh1 {[%clk 0:03:16]} 81. Ke2 {[%clk 0:01:11]}  Ke8 {[%clk 0:01:10]}
82. Ne5 {[%clk 0:00:51]}  h4 {[%clk 0:00:54]} 83. gxh4 {[%clk 0:01:03]}  g4 {[%clk 0:01:12]} 84. Re6+ {[%clk 0:00:56]}  Kd8 {[%clk 0:01:35]}
85. Nc6+ {[%clk 0:00:55]}  Kd7 {[%clk 0:01:58]} 86. Nd4 {[%clk 0:01:16]}  Qxh4 {[%clk 0:01:09]} 87. Rd6+ {[%clk 0:01:29]}  Kc7 {[%clk 0:01:21]}
88. Nxf5 {[%clk 0:01:10]}  Qh1 {[%clk 0:00:53]} 89. Rf6 {[%clk 0:01:11]}  Qf3+ {[%clk 0:01:15]} 90. Ke1 {[%clk 0:01:18]}  Kb8 {[%clk 0:01:12]}
91. Rb6+ {[%clk 0:00:43]}  Ka7 {[%clk 0:01:14]} 92. Rb5 {[%clk 0:00:50]}  Ka6 {[%clk 0:01:13]} 93. Nd4 {[%clk 0:01:06]}  Qe4 {[%clk 0:01:32]}
94. Ke2 {[%clk 0:01:05]}  Qg2 {[%clk 0:01:03]} 95. Rg5 {[%clk 0:01:20]}  Qe4 {[%clk 0:01:19]} 96. Rf5 {[%clk 0:00:56]}  Qg2 {[%clk 0:01:38]}
97. Rg5 {[%clk 0:01:11]}  Qe4 {[%clk 0:01:55]} 98. Rf5 {[%clk 0:01:05]}  Qg2 {[%clk 0:02:14]} 99. Rg5 {[%clk 0:01:16]}  Qe4 {[%clk 0:02:27]} 1/2-1/2